fUSD/lending_fUSD_20260620
["ID","MTS","AMOUNT","RATE_DAILY","PERIOD"]
[425810720,1781927445000,-223.14458319,0.00032401,2]
[425810725,1781927445000,-192.64379188,0.0003241,2]
[425810721,1781927445000,-170.96003172,0.0003241,2]
[425810710,1781927445000,-150.0,0.00032277,30]
[425810701,1781927445000,-174.58078829,0.00032207,30]
[425810753,1781927445000,-150.0,0.00032789,30]
[425810755,1781927445000,-249.23235818,0.00032816,30]
[425810784,1781927445000,-185.19,0.00032903,2]
[425810782,1781927445000,-384.16976805,0.000329,2]
[425810788,1781927445000,-573.61,0.00032904,2]
[425810786,1781927445000,-151.0,0.00032904,2]
[425810789,1781927445000,-573.61,0.00032904,2]
[425810787,1781927445000,-573.61,0.00032904,2]
[425810791,1781927445000,-573.61,0.00032911,2]
[425810790,1781927445000,-3605.95,0.00032908,2]
[425810792,1781927445000,-162.0,0.00032918,30]
[425810794,1781927445000,-156.0,0.00032923,30]
[425810795,1781927445000,-199.0,0.00032923,30]
[425810785,1781927445000,-185.19,0.00032903,2]
[425810793,1781927445000,-737.0,0.00032921,2]
[425810798,1781927445000,-159.0,0.00032924,30]
[425810799,1781927445000,-737.0,0.00032934,2]
[425810802,1781927445000,-1000.0,0.00032956,120]
[425810801,1781927445000,-151.000006,0.00032956,7]
[425810797,1781927445000,-158.0,0.00032924,30]
[425810800,1781927445000,-330.56127425,0.00032946,2]
[425810803,1781927445000,-151.0,0.00032956,30]
[425810804,1781927445000,-156.587,0.00032956,30]
[425810805,1781927445000,-162.380719,0.00032956,30]
[425810750,1781927445000,-2110.0,0.00032763,2]
[425810806,1781927445000,-155.41295787,0.00032956,30]
[425810796,1781927445000,-158.0,0.00032923,30]
[425810783,1781927445000,-157.55,0.00032903,2]
[425810807,1781927445000,-158.45469157,0.00032956,30]
[425810779,1781927445000,-387.0,0.00032897,30]
[425810781,1781927445000,-500.0,0.00032899,7]
[425810756,1781927445000,-528.0,0.00032833,2]
[425810758,1781927445000,-962.44065062,0.00032856,2]
[425810757,1781927445000,-834.0,0.00032847,2]
[425810760,1781927445000,-480.0,0.00032873,2]
[425810762,1781927445000,-150.0,0.00032874,30]
[425810759,1781927445000,-1793.86853272,0.00032867,2]
[425810761,1781927445000,-200.0,0.00032874,2]
[425810763,1781927445000,-150.0,0.00032874,30]
[425810764,1781927445000,-500.0,0.00032876,120]
[425810766,1781927445000,-500.0,0.00032876,120]
[425810767,1781927445000,-500.0,0.00032876,120]
[425810754,1781927445000,-480.0,0.00032792,2]
[425810765,1781927445000,-500.0,0.00032876,120]
[425810769,1781927445000,-500.0,0.00032876,120]
[425810778,1781927445000,-150.0,0.00032892,30]
[425810776,1781927445000,-150.057894,0.00032877,120]
[425810780,1781927445000,-500.0,0.00032899,7]
[425810775,1781927445000,-484.59,0.00032877,2]
[425810777,1781927445000,-150.0,0.00032877,120]
[425810773,1781927445000,-500.0,0.00032876,120]
[425810771,1781927445000,-500.0,0.00032876,120]
[425810770,1781927445000,-500.0,0.00032876,120]
[425810772,1781927445000,-500.0,0.00032876,120]
[425810768,1781927445000,-500.0,0.00032876,120]
[425810774,1781927445000,-1000.0,0.00032877,10]
[425810850,1781927446000,-152.0,0.00032956,30]
[425810839,1781927446000,-158.45469157,0.00032956,30]
[425810843,1781927446000,-1000.0,0.00032956,30]
[425810842,1781927446000,-156.587,0.00032956,30]
[425810847,1781927446000,-158.45469157,0.00032956,30]
[425810846,1781927446000,-151.0,0.00032956,30]
[425810845,1781927446000,-151.0,0.00032956,30]
[425810844,1781927446000,-155.41295787,0.00032956,30]
[425810848,1781927446000,-151.0,0.00032956,30]
[425810841,1781927446000,-537.6845,0.00032956,30]
[425810856,1781927446000,-1000.0,0.00032956,30]
[425810853,1781927446000,-151.0,0.00032956,30]
[425810854,1781927446000,-557.5788265,0.00032956,30]
[425810855,1781927446000,-156.587,0.00032956,30]
[425810852,1781927446000,-162.380719,0.00032956,30]
[425810859,1781927446000,-152.0,0.00032956,30]
[425810860,1781927446000,-158.45469165,0.00032956,30]
[425810857,1781927446000,-151.0,0.00032956,30]
[425810861,1781927446000,-168.3888056,0.00032956,30]
[425810858,1781927446000,-155.41295792,0.00032956,30]
[425810862,1781927446000,-578.20924308,0.00032956,30]
[425810840,1781927446000,-2796.70207546,0.00032956,30]
[425810851,1781927446000,-151.0,0.00032956,30]
[425810836,1781927446000,-155.41295787,0.00032956,30]
[425810818,1781927446000,-187.78006524,0.00032956,30]
[425810835,1781927446000,-518.5,0.00032956,30]
[425810863,1781927446000,-6000.0,0.00032956,30]
[425810808,1781927446000,-168.3888056,0.00032956,30]
[425810810,1781927446000,-620.0,0.00032956,30]
[425810809,1781927446000,-155.41295787,0.00032956,30]
[425810814,1781927446000,-443.9150903,0.00032956,30]
[425810813,1781927446000,-155.41295787,0.00032956,30]
[425810812,1781927446000,-174.61919141,0.00032956,30]
[425810811,1781927446000,-158.45469157,0.00032956,30]
[425810815,1781927446000,-158.45469157,0.00032956,30]
[425810817,1781927446000,-155.41295787,0.00032956,30]
[425810819,1781927446000,-158.45469157,0.00032956,30]
[425810816,1781927446000,-181.08010149,0.00032956,30]
[425810821,1781927446000,-155.41295787,0.00032956,30]
[425810825,1781927446000,-158.45469157,0.00032956,30]
[425810823,1781927446000,-194.72792766,0.00032956,30]
[425810832,1781927446000,-151.0,0.00032956,30]
[425810829,1781927446000,-151.0,0.00032956,30]
[425810827,1781927446000,-155.41295787,0.00032956,30]
[425810826,1781927446000,-500.0,0.00032956,30]
[425810831,1781927446000,-204.25160604,0.00032956,30]
[425810834,1781927446000,-151.0,0.00032956,30]
[425810833,1781927446000,-158.45469157,0.00032956,30]
[425810838,1781927446000,-152.0,0.00032956,30]
[425810837,1781927446000,-151.0,0.00032956,30]
[425810864,1781927446000,-151.0,0.00032956,30]
[425810913,1781927446000,-500.0,0.00032956,30]
[425810865,1781927446000,-151.0,0.00032956,30]
[425810895,1781927446000,-1000.0,0.00032956,30]
[425810893,1781927446000,-151.0,0.00032956,30]
[425810897,1781927446000,-7142.856,0.00032956,30]
[425810896,1781927446000,-500.0,0.00032956,30]
[425810899,1781927446000,-195.48446559,0.00032956,30]
[425810898,1781927446000,-174.61919141,0.00032956,30]
[425810900,1781927446000,-156.587,0.00032956,30]
[425810902,1781927446000,-6452.214,0.00032956,30]
[425810901,1781927446000,-152.0,0.00032956,30]
[425810905,1781927446000,-673.89048806,0.00032956,30]
[425810904,1781927446000,-187.78006524,0.00032956,30]
[425810903,1781927446000,-500.0,0.00032956,30]
[425810908,1781927446000,-151.0,0.00032956,30]
[425810907,1781927446000,-151.0,0.00032956,30]
[425810909,1781927446000,-1000.0,0.00032956,30]
[425810911,1781927446000,-7407.141672,0.00032956,30]
[425810910,1781927446000,-151.0,0.00032956,30]
[425810917,1781927446000,-151.0,0.00032956,30]
[425810912,1781927446000,-162.380719,0.00032956,30]
[425810914,1781927446000,-1000.0,0.00032956,30]
[425810915,1781927446000,-181.08010149,0.00032956,30]
[425810916,1781927446000,-539.24,0.00032956,30]
[425810866,1781927446000,-1000.0,0.00032956,30]
[425810894,1781927446000,-520.0,0.00032956,30]
[425810891,1781927446000,-644.79446245,0.00032956,30]
[425810906,1781927446000,-151.0,0.00032956,30]
[425810884,1781927446000,-160.0,0.00032956,30]
[425810892,1781927446000,-1000.0,0.00032956,30]
[425810867,1781927446000,-6377.06474033,0.00032956,30]
[425810869,1781927446000,-152.0,0.00032956,30]
[425810868,1781927446000,-162.380719,0.00032956,30]
[425810871,1781927446000,-174.61919141,0.00032956,30]
[425810874,1781927446000,-1000.0,0.00032956,30]
[425810870,1781927446000,-599.60298507,0.00032956,30]
[425810872,1781927446000,-151.0,0.00032956,30]
[425810876,1781927446000,-165.22915787,0.00032956,30]
[425810877,1781927446000,-151.0,0.00032956,30]
[425810875,1781927446000,-160.0,0.00032956,30]
[425810878,1781927446000,-6222.0,0.00032956,30]
[425810873,1781927446000,-250.0,0.00032956,30]
[425810885,1781927446000,-1000.0,0.00032956,30]
[425810889,1781927446000,-500.0,0.00032956,30]
[425810890,1781927446000,-151.0,0.00032956,30]
[425810880,1781927446000,-168.3888056,0.00032956,30]
[425810887,1781927446000,-151.0,0.00032956,30]
[425810882,1781927446000,-250.0,0.00032956,30]
[425810879,1781927446000,-621.78829552,0.00032956,30]
[425810881,1781927446000,-151.0,0.00032956,30]
[425810886,1781927446000,-152.0,0.00032956,30]
[425810883,1781927446000,-6888.0,0.00032956,30]
[425810888,1781927446000,-181.08010149,0.00032956,30]
[425810962,1781927447000,-201.93286098,0.00032956,30]
[425810949,1781927447000,-152.0,0.00032956,30]
[425810951,1781927447000,-151.0,0.00032956,30]
[425810950,1781927447000,-500.0,0.00032956,30]
[425810953,1781927447000,-1000.0,0.00032956,30]
[425810952,1781927447000,-187.78006524,0.00032956,30]
[425810954,1781927447000,-500.0,0.00032956,30]
[425810956,1781927447000,-151.0,0.00032956,30]
[425810959,1781927447000,-8565.75555911,0.00032956,30]
[425810957,1781927447000,-579.88197956,0.00032956,30]
[425810958,1781927447000,-168.3888056,0.00032956,30]
[425810960,1781927447000,-151.0,0.00032956,30]
[425810971,1781927447000,-500.0,0.00032956,30]
[425810963,1781927447000,-557.5788265,0.00032956,30]
[425810965,1781927447000,-500.0,0.00032956,30]
[425810966,1781927447000,-8882.6885148,0.00032956,30]
[425810964,1781927447000,-151.0,0.00032956,30]
[425810967,1781927447000,-151.0,0.00032956,30]
[425810968,1781927447000,-151.0,0.00032956,30]
[425810973,1781927447000,-601.3376128,0.00032956,30]
[425810976,1781927447000,-152.0,0.00032956,30]
[425810972,1781927447000,-201.93286098,0.00032956,30]
[425810969,1781927447000,-1000.0,0.00032956,30]
[425810970,1781927447000,-174.61919141,0.00032956,30]
[425810947,1781927447000,-194.72792766,0.00032956,30]
[425810961,1781927447000,-194.72792766,0.00032956,30]
[425810945,1781927447000,-537.6845,0.00032956,30]
[425810918,1781927447000,-500.0,0.00032956,30]
[425810943,1781927447000,-181.08010149,0.00032956,30]
[425810919,1781927447000,-152.0,0.00032956,30]
[425810974,1781927447000,-8372.26950849,0.00032956,30]
[425810921,1781927447000,-168.3888056,0.00032956,30]
[425810920,1781927447000,-194.72792766,0.00032956,30]
[425810922,1781927447000,-1086.54786948,0.00032956,30]
[425810925,1781927447000,-518.5,0.00032956,30]
[425810923,1781927447000,-7681.20591386,0.00032956,30]
[425810924,1781927447000,-156.587,0.00032956,30]
[425810927,1781927447000,-151.0,0.00032956,30]
[425810926,1781927447000,-3930.06314054,0.00032956,30]
[425810930,1781927447000,-187.78006524,0.00032956,30]
[425810928,1781927447000,-151.0,0.00032956,30]
[425810929,1781927447000,-151.0,0.00032956,30]
[425810932,1781927447000,-174.61919141,0.00032956,30]
[425810931,1781927447000,-500.0,0.00032956,30]
[425810933,1781927447000,-7965.41053267,0.00032956,30]
[425810934,1781927447000,-152.0,0.00032956,30]
[425810936,1781927447000,-203.11391667,0.00032956,30]
[425810935,1781927447000,-1000.0,0.00032956,30]
[425810938,1781927447000,-500.0,0.00032956,30]
[425810942,1781927447000,-151.0,0.00032956,30]
[425810937,1781927447000,-559.19188,0.00032956,30]
[425810940,1781927447000,-162.380719,0.00032956,30]
[425810939,1781927447000,-151.0,0.00032956,30]
[425810944,1781927447000,-8260.13072238,0.00032956,30]
[425810946,1781927447000,-151.0,0.00032956,30]
[425810975,1781927447000,-151.0,0.00032956,30]
[425810979,1781927447000,-209.40437684,0.00032956,30]
[425810977,1781927447000,-578.20924308,0.00032956,30]
[425811009,1781927447000,-500.0,0.00032956,30]
[425811010,1781927447000,-251.11897888,0.00032956,30]
[425811011,1781927447000,-646.65982734,0.00032956,30]
[425811014,1781927447000,-152.0,0.00032956,30]
[425811012,1781927447000,-644.79446245,0.00032956,30]
[425811013,1781927447000,-151.0,0.00032956,30]
[425811016,1781927447000,-1000.0,0.00032956,30]
[425811018,1781927447000,-260.4103811,0.00032956,30]
[425811017,1781927447000,-151.0,0.00032956,30]
[425811015,1781927447000,-500.0,0.00032956,30]
[425811020,1781927447000,-152.0,0.00032956,30]
[425811019,1781927447000,-500.0,0.00032956,30]
[425811004,1781927447000,-500.0,0.00032956,30]
[425811021,1781927447000,-670.58624095,0.00032956,30]
[425811022,1781927447000,-270.0455652,0.00032956,30]
[425811024,1781927447000,-500.0,0.00032956,30]
[425811026,1781927447000,-151.0,0.00032956,30]
[425811029,1781927447000,-151.0,0.00032956,30]
[425811032,1781927447000,-290.3986294,0.00032956,30]
[425811025,1781927447000,-668.65185756,0.00032956,30]
[425811030,1781927447000,-1000.0,0.00032956,30]
[425810978,1781927447000,-151.0,0.00032956,30]
[425811031,1781927447000,-500.0,0.00032956,30]
[425811027,1781927447000,-280.03725111,0.00032956,30]
[425811034,1781927447000,-500.0,0.00032956,30]
[425811033,1781927447000,-695.39793187,0.00032956,30]
[425811023,1781927447000,-151.0,0.00032956,30]
[425811008,1781927447000,-204.14380155,0.00032956,30]
[425811028,1781927447000,-152.0,0.00032956,30]
[425811005,1781927447000,-152.0,0.00032956,30]
[425811006,1781927447000,-242.15909246,0.00032956,30]
[425810980,1781927447000,-151.0,0.00032956,30]
[425810986,1781927447000,-623.58710447,0.00032956,30]
[425810984,1781927447000,-500.0,0.00032956,30]
[425810987,1781927447000,-217.15233878,0.00032956,30]
[425810983,1781927447000,-151.0,0.00032956,30]
[425810981,1781927447000,-181.08010149,0.00032956,30]
[425810985,1781927447000,-500.0,0.00032956,30]
[425810989,1781927447000,-151.0,0.00032956,30]
[425810988,1781927447000,-152.0,0.00032956,30]
[425810991,1781927447000,-151.0,0.00032956,30]
[425810992,1781927447000,-599.60298507,0.00032956,30]
[425810982,1781927447000,-1000.0,0.00032956,30]
[425810994,1781927447000,-225.18697532,0.00032956,30]
[425810990,1781927447000,-187.78006524,0.00032956,30]
[425811003,1781927447000,-151.0,0.00032956,30]
[425811000,1781927447000,-194.72792766,0.00032956,30]
[425811001,1781927447000,-233.5188934,0.00032956,30]
[425810997,1781927447000,-151.0,0.00032956,30]
[425811002,1781927447000,-621.78829552,0.00032956,30]
[425810998,1781927447000,-152.0,0.00032956,30]
[425810995,1781927447000,-500.0,0.00032956,30]
[425810996,1781927447000,-1000.0,0.00032956,30]
[425810993,1781927447000,-151.0,0.00032956,30]
[425810999,1781927447000,-151.0,0.00032956,30]
[425811007,1781927447000,-151.0,0.00032956,30]
[425811060,1781927448000,-775.4783256,0.00032956,30]
[425811068,1781927448000,-151.0,0.00032956,30]
[425811062,1781927448000,-151.0,0.00032956,30]
[425811063,1781927448000,-500.0,0.00032956,30]
[425811065,1781927448000,-1000.0,0.00032956,30]
[425811061,1781927448000,-773.24136889,0.00032956,30]
[425811064,1781927448000,-500.0,0.00032956,30]
[425811067,1781927448000,-801.85129954,0.00032956,30]
[425811066,1781927448000,-804.17102365,0.00032956,30]
[425811069,1781927448000,-500.0,0.00032956,30]
[425811076,1781927448000,-500.0,0.00032956,30]
[425811072,1781927448000,-833.92535152,0.00032956,30]
[425811073,1781927448000,-831.51979762,0.00032956,30]
[425811075,1781927448000,-500.0,0.00032956,30]
[425811077,1781927448000,-862.28603014,0.00032956,30]
[425811074,1781927448000,-151.0,0.00032956,30]
[425811079,1781927448000,-151.0,0.00032956,30]
[425811078,1781927448000,-864.78058953,0.00032956,30]
[425811080,1781927448000,-500.0,0.00032956,30]
[425811081,1781927448000,-500.0,0.00032956,30]
[425811059,1781927448000,-500.0,0.00032956,30]
[425811070,1781927448000,-500.0,0.00032956,30]
[425811057,1781927448000,-1000.0,0.00032956,30]
[425811045,1781927448000,-151.0,0.00032956,30]
[425811055,1781927448000,-152.0,0.00032956,30]
[425811082,1781927448000,-894.19061325,0.00032956,30]
[425811036,1781927448000,-152.0,0.00032956,30]
[425811035,1781927448000,-693.39197629,0.00032956,30]
[425811038,1781927448000,-301.14337869,0.00032956,30]
[425811041,1781927448000,-500.0,0.00032956,30]
[425811037,1781927448000,-151.0,0.00032956,30]
[425811039,1781927448000,-151.0,0.00032956,30]
[425811042,1781927448000,-152.0,0.00032956,30]
[425811040,1781927448000,-1000.0,0.00032956,30]
[425811043,1781927448000,-719.04747942,0.00032956,30]
[425811047,1781927448000,-721.12765534,0.00032956,30]
[425811046,1781927448000,-151.0,0.00032956,30]
[425811044,1781927448000,-500.0,0.00032956,30]
[425811049,1781927448000,-1000.0,0.00032956,30]
[425811048,1781927448000,-500.0,0.00032956,30]
[425811051,1781927448000,-500.0,0.00032956,30]
[425811054,1781927448000,-747.80937859,0.00032956,30]
[425811050,1781927448000,-152.0,0.00032956,30]
[425811053,1781927448000,-151.0,0.00032956,30]
[425811052,1781927448000,-745.65223615,0.00032956,30]
[425811056,1781927448000,-500.0,0.00032956,30]
[425811058,1781927448000,-500.0,0.00032956,30]
[425811083,1781927448000,-500.0,0.00032956,30]
[425811071,1781927448000,-1055.70635562,0.00032956,30]
[425811087,1781927448000,-927.27566594,0.00032956,30]
[425811113,1781927448000,-151.0,0.00032956,30]
[425811112,1781927448000,-151.0,0.00032956,30]
[425811111,1781927448000,-151.0,0.00032956,30]
[425811115,1781927448000,-151.0,0.00032956,30]
[425811114,1781927448000,-151.0,0.00032956,30]
[425811116,1781927448000,-151.0,0.00032956,30]
[425811118,1781927448000,-151.0,0.00032956,30]
[425811117,1781927448000,-151.0,0.00032956,30]
[425811119,1781927448000,-151.0,0.00032956,30]
[425811121,1781927448000,-151.0,0.00032956,30]
[425811123,1781927448000,-151.0,0.00032956,30]
[425811125,1781927448000,-151.0,0.00032956,30]
[425811122,1781927448000,-151.0,0.00032956,30]
[425811124,1781927448000,-151.0,0.00032956,30]
[425811127,1781927448000,-151.0,0.00032956,30]
[425811126,1781927448000,-151.0,0.00032956,30]
[425811129,1781927448000,-542.68886294,0.00032956,30]
[425811128,1781927448000,-542.68886294,0.00032956,30]
[425811131,1781927448000,-542.68886294,0.00032956,30]
[425811130,1781927448000,-542.68886294,0.00032956,30]
[425811084,1781927448000,-896.77747134,0.00032956,30]
[425811109,1781927448000,-151.0,0.00032956,30]
[425811110,1781927448000,-151.0,0.00032956,30]
[425811120,1781927448000,-151.0,0.00032956,30]
[425811108,1781927448000,-151.0,0.00032956,30]
[425811105,1781927448000,-152.90634065,0.00032956,30]
[425811086,1781927448000,-500.0,0.00032956,30]
[425811089,1781927448000,-151.0,0.00032956,30]
[425811088,1781927448000,-929.95823778,0.00032956,30]
[425811090,1781927448000,-500.0,0.00032956,30]
[425811092,1781927448000,-152.90634065,0.00032956,30]
[425811094,1781927448000,-964.36669258,0.00032956,30]
[425811097,1781927448000,-997.16350561,0.00032956,30]
[425811095,1781927448000,-152.90634065,0.00032956,30]
[425811093,1781927448000,-151.0,0.00032956,30]
[425811091,1781927448000,-961.58486558,0.00032956,30]
[425811085,1781927448000,-151.0,0.00032956,30]
[425811107,1781927448000,-152.90634069,0.00032956,30]
[425811132,1781927448000,-402.88228263,0.00032956,30]
[425811106,1781927448000,-152.90634065,0.00032956,30]
[425811101,1781927448000,-152.90634065,0.00032956,30]
[425811103,1781927448000,-1037.05004583,0.00032956,30]
[425811104,1781927448000,-152.90634065,0.00032956,30]
[425811098,1781927448000,-151.0,0.00032956,30]
[425811100,1781927448000,-1000.04826021,0.00032956,30]
[425811099,1781927448000,-152.90634065,0.00032956,30]
[425811096,1781927448000,-500.0,0.00032956,30]
[425811102,1781927448000,-500.0,0.00032956,30]
[425811175,1781927449000,-402.88228263,0.00032956,30]
[425811170,1781927449000,-542.68886294,0.00032956,30]
[425811172,1781927449000,-402.88228263,0.00032956,30]
[425811171,1781927449000,-384.78176723,0.00032956,30]
[425811169,1781927449000,-402.88228263,0.00032956,30]
[425811164,1781927449000,-542.68886294,0.00032956,30]
[425811168,1781927449000,-187.78006524,0.00032956,30]
[425811167,1781927449000,-542.68886294,0.00032956,30]
[425811165,1781927449000,-402.88228263,0.00032956,30]
[425811174,1781927449000,-542.68886294,0.00032956,30]
[425811166,1781927449000,-384.78176723,0.00032956,30]
[425811162,1781927449000,-402.88228263,0.00032956,30]
[425811188,1781927449000,-402.88228275,0.00032956,30]
[425811178,1781927449000,-542.68886294,0.00032956,30]
[425811177,1781927449000,-201.93286098,0.00032956,30]
[425811180,1781927449000,-542.68886294,0.00032956,30]
[425811182,1781927449000,-209.40437684,0.00032956,30]
[425811181,1781927449000,-402.88228263,0.00032956,30]
[425811179,1781927449000,-402.88228263,0.00032956,30]
[425811184,1781927449000,-542.68886312,0.00032956,30]
[425811183,1781927449000,-384.78176723,0.00032956,30]
[425811189,1781927449000,-225.18697532,0.00032956,30]
[425811187,1781927449000,-384.78176723,0.00032956,30]
[425811185,1781927449000,-402.88228263,0.00032956,30]
[425811163,1781927449000,-181.08010149,0.00032956,30]
[425811173,1781927449000,-194.72792766,0.00032956,30]
[425811161,1781927449000,-384.78176723,0.00032956,30]
[425811137,1781927449000,-402.88228263,0.00032956,30]
[425811159,1781927449000,-174.61919141,0.00032956,30]
[425811133,1781927449000,-542.68886294,0.00032956,30]
[425811135,1781927449000,-542.68886294,0.00032956,30]
[425811134,1781927449000,-402.88228263,0.00032956,30]
[425811136,1781927449000,-402.88228263,0.00032956,30]
[425811186,1781927449000,-217.15233878,0.00032956,30]
[425811139,1781927449000,-542.68886294,0.00032956,30]
[425811141,1781927449000,-151.0,0.00032956,30]
[425811142,1781927449000,-542.68886294,0.00032956,30]
[425811140,1781927449000,-402.88228263,0.00032956,30]
[425811138,1781927449000,-384.78176723,0.00032956,30]
[425811143,1781927449000,-402.88228263,0.00032956,30]
[425811145,1781927449000,-156.587,0.00032956,30]
[425811160,1781927449000,-402.88228263,0.00032956,30]
[425811144,1781927449000,-384.78176723,0.00032956,30]
[425811146,1781927449000,-542.68886294,0.00032956,30]
[425811149,1781927449000,-384.78176723,0.00032956,30]
[425811154,1781927449000,-384.78176723,0.00032956,30]
[425811150,1781927449000,-402.88228263,0.00032956,30]
[425811153,1781927449000,-402.88228263,0.00032956,30]
[425811148,1781927449000,-542.68886294,0.00032956,30]
[425811151,1781927449000,-162.380719,0.00032956,30]
[425811152,1781927449000,-542.68886294,0.00032956,30]
[425811155,1781927449000,-168.3888056,0.00032956,30]
[425811156,1781927449000,-542.68886294,0.00032956,30]
[425811158,1781927449000,-542.68886294,0.00032956,30]
[425811157,1781927449000,-402.88228263,0.00032956,30]
[425811147,1781927449000,-402.88228263,0.00032956,30]
[425811192,1781927449000,-384.78176723,0.00032956,30]
[425811176,1781927449000,-384.78176723,0.00032956,30]
[425811190,1781927449000,-384.78176723,0.00032956,30]
[425811223,1781927449000,-200.0,0.00032956,30]
[425811225,1781927449000,-243.41961904,0.00032991,30]
[425811224,1781927449000,-286.78306349,0.00032956,30]
[425811226,1781927449000,-150.0,0.00032994,30]
[425811227,1781927449000,-900.0,0.00032999,120]
[425811233,1781927449000,-500.0,0.00032999,7]
[425811230,1781927449000,-300.0,0.00032999,10]
[425811229,1781927449000,-808.0,0.00032999,120]
[425811232,1781927449000,-500.0,0.00032999,7]
[425811235,1781927449000,-300.0,0.00032999,10]
[425811231,1781927449000,-500.0,0.00032999,7]
[425811234,1781927449000,-500.0,0.00032999,7]
[425811222,1781927449000,-200.0,0.00032956,30]
[425811237,1781927449000,-4958.72,0.00033,2]
[425811236,1781927449000,-1000.0,0.00032999,120]
[425811238,1781927449000,-15000.0,0.00033,2]
[425811241,1781927449000,-1641.18,0.00033,2]
[425811242,1781927449000,-12499.99,0.00033,2]
[425811240,1781927449000,-15000.0,0.00033,2]
[425811244,1781927449000,-22499.99,0.00033,2]
[425811243,1781927449000,-12499.97,0.00033,2]
[425811246,1781927449000,-22499.99,0.00033,2]
[425811248,1781927449000,-12500.0,0.00033,2]
[425811247,1781927449000,-19048.7,0.00033,2]
[425811245,1781927449000,-22499.94,0.00033,2]
[425811191,1781927449000,-233.5188934,0.00032956,30]
[425811239,1781927449000,-15000.0,0.00033,2]
[425811221,1781927449000,-200.0,0.00032956,30]
[425811228,1781927449000,-900.0,0.00032999,120]
[425811219,1781927449000,-200.0,0.00032956,30]
[425811193,1781927449000,-319.16129845,0.00032956,30]
[425811195,1781927449000,-384.78176723,0.00032956,30]
[425811194,1781927449000,-384.78176723,0.00032956,30]
[425811198,1781927449000,-384.78176723,0.00032956,30]
[425811197,1781927449000,-384.78176723,0.00032956,30]
[425811199,1781927449000,-384.78176723,0.00032956,30]
[425811196,1781927449000,-384.78176723,0.00032956,30]
[425811220,1781927449000,-200.0,0.00032956,30]
[425811201,1781927449000,-384.78176723,0.00032956,30]
[425811203,1781927449000,-151.0,0.00032956,30]
[425811202,1781927449000,-151.0,0.00032956,30]
[425811204,1781927449000,-151.0,0.00032956,30]
[425811206,1781927449000,-151.0,0.00032956,30]
[425811200,1781927449000,-384.78176723,0.00032956,30]
[425811208,1781927449000,-151.0,0.00032956,30]
[425811207,1781927449000,-151.0,0.00032956,30]
[425811212,1781927449000,-151.0,0.00032956,30]
[425811210,1781927449000,-151.0,0.00032956,30]
[425811211,1781927449000,-200.0,0.00032956,30]
[425811209,1781927449000,-151.0,0.00032956,30]
[425811214,1781927449000,-200.0,0.00032956,30]
[425811215,1781927449000,-151.0,0.00032956,30]
[425811218,1781927449000,-200.0,0.00032956,30]
[425811213,1781927449000,-151.0,0.00032956,30]
[425811217,1781927449000,-200.0,0.00032956,30]
[425811216,1781927449000,-153.14864244,0.00032956,30]
[425811205,1781927449000,-151.0,0.00032956,30]
[425811250,1781927450000,-12499.96,0.00033,2]
[425811249,1781927450000,-673.55,0.00033,2]
[425811252,1781927450000,-10544.37343832,0.00033,2]
[425811253,1781927450000,-1163.07832231,0.00033,2]
[425811251,1781927450000,-21765.35,0.00033,2]
[425811255,1781927451000,-156.83,0.0002863,30]
[425811257,1781927451000,-153.67,0.0002863,2]